[Event "*** Titled Tuesday Blitz"]
[Site "Chess.com"]
[Date "2020.12.01"]
[Round "4"]
[White "KononenkoD"]
[Black "Malev212"]
[Result "0-1"]
[WhiteElo "2364"]
[BlackElo "2543"]
[TimeControl "180+1"]
[EndTime "10:38:36 PST"]
[Termination "Malev212 won on time"]

1. d4 {[%clk 0:03:00.9]} 1... d5 {[%clk 0:02:56.1]} 2. c4 {[%clk 0:03:00.9]}
2... e6 {[%clk 0:02:56.1]} 3. Nf3 {[%clk 0:02:58.8]} 3... Nf6 {[%clk 0:02:54.7]}
4. g3 {[%clk 0:02:58.2]} 4... c5 {[%clk 0:02:51.5]} 5. cxd5 {[%clk 0:02:53.9]}
5... exd5 {[%clk 0:02:50.2]} 6. Bg2 {[%clk 0:02:53.8]} 6... cxd4 {[%clk
0:02:47.5]} 7. O-O {[%clk 0:02:53.3]} 7... Bc5 {[%clk 0:02:46.1]} 8. Nxd4 {[%clk
0:02:53.4]} 8... O-O {[%clk 0:02:44.8]} 9. Nc3 {[%clk 0:02:44.5]} 9... Bxd4
{[%clk 0:02:41]} 10. Qxd4 {[%clk 0:02:43]} 10... Nc6 {[%clk 0:02:41.9]} 11. Qa4
{[%clk 0:02:31.1]} 11... d4 {[%clk 0:02:34.3]} 12. Ne4 {[%clk 0:02:25]} 12...
Nxe4 {[%clk 0:02:25.5]} 13. Bxe4 {[%clk 0:02:25.3]} 13... Qe7 {[%clk 0:02:20.6]}
14. Qc2 {[%clk 0:02:01.8]} 14... h6 {[%clk 0:02:12.7]} 15. Bd2 {[%clk 0:01:52]}
15... Re8 {[%clk 0:02:10.3]} 16. Bh7+ {[%clk 0:01:32.7]} 16... Kh8 {[%clk
0:02:07.4]} 17. Bd3 {[%clk 0:01:33.2]} 17... Bh3 {[%clk 0:02:03.6]} 18. Rfe1
{[%clk 0:01:32.8]} 18... Ne5 {[%clk 0:01:56]} 19. Rac1 {[%clk 0:01:28.9]} 19...
Qf6 {[%clk 0:01:44.4]} 20. Bf4 {[%clk 0:01:22.2]} 20... Nxd3 {[%clk 0:01:15.8]}
21. Qxd3 {[%clk 0:01:17.7]} 21... Rad8 {[%clk 0:01:11.6]} 22. Rc7 {[%clk
0:01:05.4]} 22... Bf5 {[%clk 0:01:04.5]} 23. Qd1 {[%clk 0:00:45.6]} 23... Be4
{[%clk 0:01:00.9]} 24. Qb3 {[%clk 0:00:34.1]} 24... Bd5 {[%clk 0:00:56.3]} 25.
Qb4 {[%clk 0:00:34.2]} 25... Kg8 {[%clk 0:00:51.4]} 26. h4 {[%clk 0:00:23.8]}
26... Bc6 {[%clk 0:00:49.9]} 27. a4 {[%clk 0:00:14.9]} 27... Re4 {[%clk
0:00:48.4]} 28. Qd2 {[%clk 0:00:13.2]} 28... Rde8 {[%clk 0:00:46.2]} 29. b4
{[%clk 0:00:09.5]} 29... R4e6 {[%clk 0:00:29.7]} 30. b5 {[%clk 0:00:08.8]} 30...
Be4 {[%clk 0:00:28.4]} 31. a5 {[%clk 0:00:08.3]} 31... d3 {[%clk 0:00:24.8]} 32.
exd3 {[%clk 0:00:07.5]} 32... Bf3 {[%clk 0:00:23.7]} 33. Rxe6 {[%clk 0:00:06.8]}
33... Qxe6 {[%clk 0:00:23.6]} 34. Kh2 {[%clk 0:00:05.4]} 34... Qg4 {[%clk
0:00:16.8]} 35. Be3 {[%clk 0:00:01.2]} 35... g5 {[%clk 0:00:15.2]} 0-1

[Event "*** Titled Tuesday Blitz"]
[Site "Chess.com"]
[Date "2020.12.01"]
[Round "4"]
[White "GM4life"]
[Black "Lupul_Cenusiu"]
[Result "1-0"]
[WhiteElo "2352"]
[BlackElo "2576"]
[TimeControl "180+1"]
[EndTime "10:38:38 PST"]
[Termination "GM4life won by checkmate"]

1. e4 {[%clk 0:03:00.5]} 1... c5 {[%clk 0:02:58.4]} 2. Nf3 {[%clk 0:03:00.7]}
2... e6 {[%clk 0:02:58.4]} 3. d4 {[%clk 0:03:01.2]} 3... cxd4 {[%clk 0:02:58.4]}
4. Nxd4 {[%clk 0:03:02.1]} 4... a6 {[%clk 0:02:58.5]} 5. c4 {[%clk 0:03:02.2]}
5... Nf6 {[%clk 0:02:57.2]} 6. Nc3 {[%clk 0:03:02.4]} 6... d6 {[%clk 0:02:57.6]}
7. Be2 {[%clk 0:03:00.5]} 7... h5 {[%clk 0:02:57.5]} 8. Be3 {[%clk 0:02:59]}
8... Nbd7 {[%clk 0:02:55.9]} 9. O-O {[%clk 0:02:56.9]} 9... b6 {[%clk
0:02:55.5]} 10. f3 {[%clk 0:02:57.2]} 10... Bb7 {[%clk 0:02:55.1]} 11. Rc1
{[%clk 0:02:57.1]} 11... Rc8 {[%clk 0:02:55.2]} 12. Qd2 {[%clk 0:02:57.2]} 12...
Be7 {[%clk 0:02:54.4]} 13. a3 {[%clk 0:02:57.1]} 13... Ne5 {[%clk 0:02:48.7]}
14. b3 {[%clk 0:02:54.4]} 14... h4 {[%clk 0:02:43.4]} 15. Rfd1 {[%clk
0:02:42.6]} 15... h3 {[%clk 0:02:35.6]} 16. g3 {[%clk 0:02:41.5]} 16... Qc7
{[%clk 0:02:30.5]} 17. b4 {[%clk 0:02:29.8]} 17... Qb8 {[%clk 0:02:11.4]} 18.
Na4 {[%clk 0:02:25.9]} 18... Bd8 {[%clk 0:02:11.3]} 19. Nb3 {[%clk 0:02:24.1]}
19... Bc6 {[%clk 0:02:07.7]} 20. b5 {[%clk 0:02:22.7]} 20... axb5 {[%clk
0:01:57.8]} 21. cxb5 {[%clk 0:02:23.6]} 21... Qa7 {[%clk 0:01:49.1]} 22. Nc3
{[%clk 0:02:07]} 22... Bd7 {[%clk 0:01:38.2]} 23. Qxd6 {[%clk 0:02:05]} 23...
Bc7 {[%clk 0:01:36.9]} 24. Qb4 {[%clk 0:02:02.6]} 24... Qb8 {[%clk 0:01:24.3]}
25. Na4 {[%clk 0:01:41.9]} 25... Qb7 {[%clk 0:00:52.3]} 26. Bf4 {[%clk
0:01:23.1]} 26... Qb8 {[%clk 0:00:37.2]} 27. Nd4 {[%clk 0:00:58.8]} 27... Bd6
{[%clk 0:00:36.7]} 28. Rxc8+ {[%clk 0:00:56.5]} 28... Bxc8 {[%clk 0:00:36.1]}
29. Bxe5 {[%clk 0:00:55.9]} 29... Bxb4 {[%clk 0:00:30.2]} 30. Bxb8 {[%clk
0:00:54.6]} 30... Bxa3 {[%clk 0:00:28.6]} 31. Nc6 {[%clk 0:00:53.7]} 31... Nd7
{[%clk 0:00:21.7]} 32. Bd6 {[%clk 0:00:51.7]} 32... Bxd6 {[%clk 0:00:19.4]} 33.
Rxd6 {[%clk 0:00:51.6]} 33... f6 {[%clk 0:00:18.4]} 34. Nxb6 {[%clk 0:00:48.7]}
34... Nxb6 {[%clk 0:00:16.9]} 35. Rd8+ {[%clk 0:00:48.7]} 35... Kf7 {[%clk
0:00:16.9]} 36. Rxh8 {[%clk 0:00:49.6]} 36... e5 {[%clk 0:00:15.4]} 37. Bc4+
{[%clk 0:00:44.6]} 37... Kg6 {[%clk 0:00:14.2]} 38. Ne7+ {[%clk 0:00:41.7]}
38... Kg5 {[%clk 0:00:13.4]} 39. Nxc8 {[%clk 0:00:41.3]} 39... Nxc4 {[%clk
0:00:13.8]} 40. Rxh3 {[%clk 0:00:40.1]} 40... f5 {[%clk 0:00:12.8]} 41. exf5
{[%clk 0:00:39.9]} 41... e4 {[%clk 0:00:12.9]} 42. fxe4 {[%clk 0:00:39.5]} 42...
Nd2 {[%clk 0:00:12.1]} 43. b6 {[%clk 0:00:37.1]} 43... Nxe4 {[%clk 0:00:11.7]}
44. b7 {[%clk 0:00:37]} 44... Nf6 {[%clk 0:00:11.3]} 45. b8=Q {[%clk 0:00:36.2]}
45... Kxf5 {[%clk 0:00:11.5]} 46. Qf4+ {[%clk 0:00:34.2]} 46... Ke6 {[%clk
0:00:11.4]} 47. Qe3+ {[%clk 0:00:32.4]} 47... Kf7 {[%clk 0:00:09.8]} 48. Nd6+
{[%clk 0:00:31.8]} 48... Kg6 {[%clk 0:00:09.1]} 49. Qd3+ {[%clk 0:00:32.4]}
49... Kg5 {[%clk 0:00:07.9]} 50. Qf5# {[%clk 0:00:32.9]} 1-0

[Event "*** Titled Tuesday Blitz"]
[Site "Chess.com"]
[Date "2020.12.01"]
[Round "4"]
[White "emiliochess"]
[Black "Shockerlover"]
[Result "1-0"]
[WhiteElo "2354"]
[BlackElo "1886"]
[TimeControl "180+1"]
[EndTime "10:38:38 PST"]
[Termination "emiliochess won by resignation"]

1. d4 {[%clk 0:03:00.9]} 1... g6 {[%clk 0:03:00.3]} 2. Bf4 {[%clk 0:03:01]} 2...
Bg7 {[%clk 0:03:01.2]} 3. e3 {[%clk 0:03:01]} 3... d6 {[%clk 0:02:59.9]} 4. Nf3
{[%clk 0:03:01.4]} 4... Nf6 {[%clk 0:02:59.5]} 5. h3 {[%clk 0:03:01]} 5... O-O
{[%clk 0:02:58]} 6. c4 {[%clk 0:03:00.6]} 6... Nc6 {[%clk 0:02:57.5]} 7. Nc3
{[%clk 0:03:01]} 7... Nh5 {[%clk 0:02:52.8]} 8. Bh2 {[%clk 0:03:00.6]} 8... e5
{[%clk 0:02:52.8]} 9. d5 {[%clk 0:02:57.1]} 9... Ne7 {[%clk 0:02:50]} 10. Be2
{[%clk 0:02:57.2]} 10... Nf6 {[%clk 0:02:33.2]} 11. e4 {[%clk 0:02:51.4]} 11...
Nd7 {[%clk 0:02:32.8]} 12. O-O {[%clk 0:02:48]} 12... f5 {[%clk 0:02:31.4]} 13.
Ng5 {[%clk 0:02:40.7]} 13... Nc5 {[%clk 0:02:23]} 14. b4 {[%clk 0:02:32.1]}
14... h6 {[%clk 0:02:15.5]} 15. bxc5 {[%clk 0:02:19.9]} 15... hxg5 {[%clk
0:02:14.4]} 16. cxd6 {[%clk 0:02:20.3]} 16... cxd6 {[%clk 0:02:14.5]} 17. Qb3
{[%clk 0:02:15.5]} 17... g4 {[%clk 0:01:54.1]} 18. hxg4 {[%clk 0:02:11.9]} 18...
fxg4 {[%clk 0:01:48.9]} 19. c5 {[%clk 0:02:09.2]} 19... Kh7 {[%clk 0:01:36.6]}
20. cxd6 {[%clk 0:02:00.7]} 20... Qxd6 {[%clk 0:01:35.6]} 21. Nb5 {[%clk
0:02:01.2]} 21... Qf6 {[%clk 0:01:30.9]} 22. Nc7 {[%clk 0:01:57.9]} 22... Rb8
{[%clk 0:01:28.4]} 23. Bg3 {[%clk 0:01:50.5]} 23... g5 {[%clk 0:01:17.3]} 24.
Qd1 {[%clk 0:01:40.9]} 24... Ng6 {[%clk 0:01:03.5]} 25. Bxg4 {[%clk 0:01:37.2]}
25... Nf4 {[%clk 0:00:59.6]} 26. Bxc8 {[%clk 0:01:29.8]} 26... Rbxc8 {[%clk
0:00:55.4]} 27. Bxf4 {[%clk 0:01:30]} 27... gxf4 {[%clk 0:00:52.6]} 28. Ne6
{[%clk 0:01:24.4]} 28... Rg8 {[%clk 0:00:50.3]} 29. Qh5+ {[%clk 0:01:23.5]}
29... Bh6 {[%clk 0:00:49]} 30. Rac1 {[%clk 0:01:10.6]} 30... f3 {[%clk
0:00:39.5]} 31. Rxc8 {[%clk 0:01:08.6]} 31... fxg2 {[%clk 0:00:31.5]} 32. Rc7+
{[%clk 0:01:00.7]} 32... Kh8 {[%clk 0:00:24.8]} 33. Re1 {[%clk 0:00:34.7]} 33...
a6 {[%clk 0:00:15.2]} 34. Rf7 {[%clk 0:00:28.8]} 34... Qg6 {[%clk 0:00:03.7]}
35. Qxg6 {[%clk 0:00:29.1]} 35... Rxg6 {[%clk 0:00:04.4]} 36. Rf3 {[%clk
0:00:29.7]} 36... Bf8 {[%clk 0:00:01.6]} 37. Nxf8 {[%clk 0:00:25]} 37... Kg7
{[%clk 0:00:02]} 38. Nxg6 {[%clk 0:00:24.6]} 38... Kxg6 {[%clk 0:00:02.9]} 39.
Rf5 {[%clk 0:00:24.6]} 39... Kh6 {[%clk 0:00:01.4]} 40. Rc1 {[%clk 0:00:22.4]}
1-0

[Event "*** Titled Tuesday Blitz"]
[Site "Chess.com"]
[Date "2020.12.01"]
[Round "4"]
[White "Mostii"]
[Black "Buffy7"]
[Result "0-1"]
[WhiteElo "2477"]
[BlackElo "2679"]
[TimeControl "180+1"]
[EndTime "10:38:39 PST"]
[Termination "Buffy7 won on time"]

1. d4 {[%clk 0:02:57.6]} 1... d5 {[%clk 0:02:59]} 2. Nf3 {[%clk 0:02:57.7]} 2...
Nf6 {[%clk 0:02:58.6]} 3. g3 {[%clk 0:02:57.7]} 3... g6 {[%clk 0:02:56]} 4. Bg2
{[%clk 0:02:58.2]} 4... Bg7 {[%clk 0:02:56.4]} 5. O-O {[%clk 0:02:58.6]} 5...
O-O {[%clk 0:02:57]} 6. b3 {[%clk 0:02:58.8]} 6... c6 {[%clk 0:02:54]} 7. Bb2
{[%clk 0:02:57.9]} 7... a5 {[%clk 0:02:54.6]} 8. Nbd2 {[%clk 0:02:56.7]} 8... a4
{[%clk 0:02:54.3]} 9. c4 {[%clk 0:02:56]} 9... b5 {[%clk 0:02:50.2]} 10. Ne5
{[%clk 0:02:37.5]} 10... Qb6 {[%clk 0:02:34.5]} 11. c5 {[%clk 0:02:33.9]} 11...
Qc7 {[%clk 0:02:21.1]} 12. b4 {[%clk 0:02:31.2]} 12... Nfd7 {[%clk 0:02:16.9]}
13. f4 {[%clk 0:02:15.5]} 13... Nxe5 {[%clk 0:01:59.6]} 14. fxe5 {[%clk
0:02:14.1]} 14... Bf5 {[%clk 0:01:59]} 15. e4 {[%clk 0:02:07.7]} 15... dxe4
{[%clk 0:01:57.2]} 16. Nxe4 {[%clk 0:02:07]} 16... Na6 {[%clk 0:01:47.3]} 17. a3
{[%clk 0:02:04.7]} 17... Qd7 {[%clk 0:01:46.9]} 18. Qe2 {[%clk 0:01:46]} 18...
Nc7 {[%clk 0:01:46.7]} 19. Nc3 {[%clk 0:01:43.2]} 19... Be6 {[%clk 0:01:43.5]}
20. Rf2 {[%clk 0:01:28]} 20... Rad8 {[%clk 0:01:26.9]} 21. Rd1 {[%clk
0:01:22.5]} 21... Bc4 {[%clk 0:01:19.4]} 22. Qe1 {[%clk 0:01:17.7]} 22... Nd5
{[%clk 0:01:13.9]} 23. Nxd5 {[%clk 0:01:14.7]} 23... Bxd5 {[%clk 0:01:13]} 24.
Qf1 {[%clk 0:01:07.7]} 24... Bxg2 {[%clk 0:01:11.3]} 25. Qxg2 {[%clk 0:01:07.7]}
25... Bxe5 {[%clk 0:01:11.2]} 26. Rfd2 {[%clk 0:00:48.9]} 26... Bg7 {[%clk
0:01:10.5]} 27. Kh1 {[%clk 0:00:31.6]} 27... e6 {[%clk 0:01:07.9]} 28. h4 {[%clk
0:00:29.1]} 28... Qd5 {[%clk 0:01:07]} 29. Kh2 {[%clk 0:00:24.2]} 29... Qxg2+
{[%clk 0:01:06.9]} 30. Kxg2 {[%clk 0:00:25.1]} 30... Rd5 {[%clk 0:01:06.9]} 31.
Kf3 {[%clk 0:00:25.4]} 31... Rfd8 {[%clk 0:01:07.4]} 32. Ke4 {[%clk 0:00:23.4]}
32... f5+ {[%clk 0:01:06.8]} 33. Kf3 {[%clk 0:00:23.4]} 33... e5 {[%clk
0:01:06.6]} 34. Re1 {[%clk 0:00:22.4]} 34... e4+ {[%clk 0:01:06.8]} 35. Kg2
{[%clk 0:00:19.4]} 35... Bxd4 {[%clk 0:01:06.9]} 36. Bxd4 {[%clk 0:00:17.3]}
36... Rxd4 {[%clk 0:01:07.8]} 37. Rxd4 {[%clk 0:00:17.7]} 37... Rxd4 {[%clk
0:01:08.5]} 38. Re3 {[%clk 0:00:18.2]} 38... Kf7 {[%clk 0:01:07.9]} 39. Kf2
{[%clk 0:00:18.1]} 39... Ke6 {[%clk 0:01:08.1]} 40. g4 {[%clk 0:00:18.4]} 40...
f4 {[%clk 0:01:07.5]} 41. Rc3 {[%clk 0:00:18.3]} 41... Ke5 {[%clk 0:01:07.4]}
42. g5 {[%clk 0:00:17.9]} 42... Rd2+ {[%clk 0:01:06.6]} 43. Ke1 {[%clk
0:00:17.7]} 43... e3 {[%clk 0:01:06.8]} 44. h5 {[%clk 0:00:16.3]} 44... gxh5
{[%clk 0:01:06.6]} 45. Rc1 {[%clk 0:00:15]} 45... h4 {[%clk 0:01:06]} 46. Kf1
{[%clk 0:00:14.6]} 46... f3 {[%clk 0:01:02.5]} 47. Kg1 {[%clk 0:00:13.1]} 47...
h3 {[%clk 0:01:01.1]} 48. Kh1 {[%clk 0:00:08.5]} 48... Kf4 {[%clk 0:00:59.4]}
49. g6 {[%clk 0:00:07.9]} 49... hxg6 {[%clk 0:01:00.3]} 50. Rg1 {[%clk
0:00:06.5]} 50... f2 {[%clk 0:00:56.9]} 51. Rf1 {[%clk 0:00:03.3]} 51... g5
{[%clk 0:00:53.3]} 52. Rc1 {[%clk 0:00:01.9]} 52... g4 {[%clk 0:00:52.5]} 0-1

[Event "*** Titled Tuesday Blitz"]
[Site "Chess.com"]
[Date "2020.12.01"]
[Round "4"]
[White "DinaBelenkaya"]
[Black "Meri-Arabidze"]
[Result "0-1"]
[WhiteElo "2398"]
[BlackElo "2620"]
[TimeControl "180+1"]
[EndTime "10:38:39 PST"]
[Termination "Meri-Arabidze won on time"]

1. e4 {[%clk 0:03:00.9]} 1... c5 {[%clk 0:02:59.9]} 2. Nc3 {[%clk 0:03:00.3]}
2... e6 {[%clk 0:03:00.8]} 3. g3 {[%clk 0:02:59.9]} 3... Nc6 {[%clk 0:03:01.4]}
4. Bg2 {[%clk 0:02:59.9]} 4... g6 {[%clk 0:03:01.8]} 5. Nge2 {[%clk 0:03:00.1]}
5... Bg7 {[%clk 0:03:02.1]} 6. d3 {[%clk 0:02:58.6]} 6... Nge7 {[%clk
0:03:02.1]} 7. Bg5 {[%clk 0:02:57.3]} 7... d6 {[%clk 0:02:57.5]} 8. Qd2 {[%clk
0:02:56.6]} 8... h6 {[%clk 0:02:54.1]} 9. Be3 {[%clk 0:02:56.1]} 9... Nd4 {[%clk
0:02:54.4]} 10. O-O {[%clk 0:02:42.4]} 10... Rb8 {[%clk 0:02:48.9]} 11. Nc1
{[%clk 0:02:39.7]} 11... b5 {[%clk 0:02:47.5]} 12. Nd1 {[%clk 0:02:39.8]} 12...
b4 {[%clk 0:02:45.4]} 13. c3 {[%clk 0:02:39.7]} 13... bxc3 {[%clk 0:02:45.9]}
14. bxc3 {[%clk 0:02:40.6]} 14... Ndc6 {[%clk 0:02:41]} 15. Ne2 {[%clk
0:02:40.7]} 15... Ba6 {[%clk 0:02:38.2]} 16. Nb2 {[%clk 0:02:38.9]} 16... h5
{[%clk 0:02:31.1]} 17. Nc4 {[%clk 0:02:37.3]} 17... Bxc4 {[%clk 0:02:24.6]} 18.
dxc4 {[%clk 0:02:38.2]} 18... O-O {[%clk 0:02:24.3]} 19. Rfd1 {[%clk 0:02:34.6]}
19... Ne5 {[%clk 0:02:14.5]} 20. Qxd6 {[%clk 0:02:21.5]} 20... Qxd6 {[%clk
0:02:15.4]} 21. Rxd6 {[%clk 0:02:21.9]} 21... Nxc4 {[%clk 0:02:16]} 22. Rd7
{[%clk 0:02:20.9]} 22... Nxe3 {[%clk 0:02:12.6]} 23. Rxe7 {[%clk 0:02:04.6]}
23... Nxg2 {[%clk 0:02:11.2]} 24. Kxg2 {[%clk 0:02:05.5]} 24... Rb2 {[%clk
0:02:11.1]} 25. Kf1 {[%clk 0:02:05.6]} 25... Rd8 {[%clk 0:02:04.2]} 26. Rxa7
{[%clk 0:01:33.2]} 26... Rdd2 {[%clk 0:02:03.2]} 27. Re1 {[%clk 0:01:33.5]}
27... Bxc3 {[%clk 0:01:23.4]} 28. Nxc3 {[%clk 0:01:32.1]} 28... Rxf2+ {[%clk
0:01:23.6]} 29. Kg1 {[%clk 0:01:31.5]} 29... Rg2+ {[%clk 0:01:23.4]} 30. Kh1
{[%clk 0:01:29.9]} 30... Rxh2+ {[%clk 0:01:21.2]} 31. Kg1 {[%clk 0:01:29.4]}
31... Rbg2+ {[%clk 0:01:22.1]} 32. Kf1 {[%clk 0:01:29.6]} 32... Rxg3 {[%clk
0:01:14.8]} 33. Ne2 {[%clk 0:01:17.9]} 33... Rgg2 {[%clk 0:01:15]} 34. Ra3
{[%clk 0:00:50.8]} 34... h4 {[%clk 0:01:12.1]} 35. Rf3 {[%clk 0:00:50.2]} 35...
h3 {[%clk 0:01:01.8]} 36. Ng3 {[%clk 0:00:38.2]} 36... Rxa2 {[%clk 0:00:54]} 37.
Re2 {[%clk 0:00:05.6]} 37... Ra1+ {[%clk 0:00:35.3]} 38. Re1 {[%clk 0:00:05.4]}
38... Rxe1+ {[%clk 0:00:26.9]} 39. Kxe1 {[%clk 0:00:06.3]} 39... c4 {[%clk
0:00:27.4]} 40. Kd1 {[%clk 0:00:02.2]} 40... Rg2 {[%clk 0:00:26.2]} 0-1

[Event "*** Titled Tuesday Blitz"]
[Site "Chess.com"]
[Date "2020.12.01"]
[Round "4"]
[White "DrMamaliga"]
[Black "kingofthenil"]
[Result "0-1"]
[WhiteElo "2344"]
[BlackElo "2743"]
[TimeControl "180+1"]
[EndTime "10:38:39 PST"]
[Termination "kingofthenil won by resignation"]

1. c4 {[%clk 0:03:00.9]} 1... Nf6 {[%clk 0:02:59.1]} 2. Nf3 {[%clk 0:03:00.5]}
2... e6 {[%clk 0:02:58.7]} 3. b3 {[%clk 0:03:00.7]} 3... a5 {[%clk 0:02:57]} 4.
g3 {[%clk 0:02:59.1]} 4... a4 {[%clk 0:02:57.3]} 5. Bg2 {[%clk 0:02:58.7]} 5...
axb3 {[%clk 0:02:57.6]} 6. Qxb3 {[%clk 0:02:58.8]} 6... Be7 {[%clk 0:02:56.6]}
7. Bb2 {[%clk 0:02:58.9]} 7... O-O {[%clk 0:02:57.5]} 8. O-O {[%clk 0:02:59.3]}
8... d5 {[%clk 0:02:56.9]} 9. e3 {[%clk 0:02:54.3]} 9... dxc4 {[%clk 0:02:46.5]}
10. Qxc4 {[%clk 0:02:55.2]} 10... b5 {[%clk 0:02:47.4]} 11. Qb3 {[%clk
0:02:49.8]} 11... Bb7 {[%clk 0:02:47.4]} 12. d4 {[%clk 0:02:44.6]} 12... Nbd7
{[%clk 0:02:40.9]} 13. Rc1 {[%clk 0:02:40.6]} 13... Rb8 {[%clk 0:02:29.8]} 14.
Nc3 {[%clk 0:02:30.1]} 14... c5 {[%clk 0:02:27.9]} 15. dxc5 {[%clk 0:02:23.8]}
15... Nxc5 {[%clk 0:02:28.7]} 16. Qd1 {[%clk 0:02:24.1]} 16... Nd3 {[%clk
0:02:24.4]} 17. Rc2 {[%clk 0:02:23.9]} 17... b4 {[%clk 0:02:15.2]} 18. Rd2
{[%clk 0:02:10.3]} 18... Nxb2 {[%clk 0:02:13.4]} 19. Rxd8 {[%clk 0:02:04.9]}
19... Nxd1 {[%clk 0:02:13.5]} 20. Rxf8+ {[%clk 0:02:05.1]} 20... Kxf8 {[%clk
0:02:00.4]} 21. Nxd1 {[%clk 0:02:06]} 21... Ne4 {[%clk 0:01:56]} 22. Rb1 {[%clk
0:01:57.2]} 22... Bd5 {[%clk 0:01:53.3]} 23. Nd4 {[%clk 0:01:52.9]} 23... Ra8
{[%clk 0:01:47.8]} 24. Rb2 {[%clk 0:01:36.9]} 24... f5 {[%clk 0:01:06.2]} 25.
Bxe4 {[%clk 0:01:15]} 25... fxe4 {[%clk 0:01:04.7]} 26. Nb3 {[%clk 0:01:15.2]}
26... Bf6 {[%clk 0:00:54.3]} 27. Rd2 {[%clk 0:01:12.2]} 27... Bxb3 {[%clk
0:00:54.3]} 28. axb3 {[%clk 0:01:13.1]} 28... Ra1 {[%clk 0:00:54.3]} 29. Kg2
{[%clk 0:01:05.8]} 29... Rb1 {[%clk 0:00:54.7]} 30. f3 {[%clk 0:00:54.9]} 30...
Rxb3 {[%clk 0:00:52.1]} 31. fxe4 {[%clk 0:00:54.3]} 31... Rb1 {[%clk 0:00:52.3]}
32. Nf2 {[%clk 0:00:54]} 32... b3 {[%clk 0:00:49.5]} 33. Nd3 {[%clk 0:00:42.1]}
33... Bc3 {[%clk 0:00:48.9]} 34. Rf2+ {[%clk 0:00:41.3]} 34... Ke7 {[%clk
0:00:48.5]} 35. Kh3 {[%clk 0:00:39]} 35... Rd1 {[%clk 0:00:44.2]} 36. Nb2 {[%clk
0:00:37.7]} 36... Rd2 {[%clk 0:00:42.3]} 37. Rxd2 {[%clk 0:00:36.3]} 37... Bxd2
{[%clk 0:00:43.2]} 38. Nc4 {[%clk 0:00:28.4]} 38... Bxe3 {[%clk 0:00:40.9]} 39.
Kg4 {[%clk 0:00:26.3]} 39... Bd4 {[%clk 0:00:39.3]} 40. Na3 {[%clk 0:00:25.8]}
40... b2 {[%clk 0:00:35.4]} 41. Kf3 {[%clk 0:00:25.6]} 41... Bc5 {[%clk
0:00:35.7]} 42. Nb1 {[%clk 0:00:23.8]} 42... Kf6 {[%clk 0:00:34.4]} 43. Ke2
{[%clk 0:00:23.5]} 43... Ke5 {[%clk 0:00:33.2]} 44. Kd3 {[%clk 0:00:24.4]} 44...
Bb4 {[%clk 0:00:32.9]} 45. h3 {[%clk 0:00:19.8]} 45... h5 {[%clk 0:00:32.4]} 46.
Ke3 {[%clk 0:00:19.8]} 46... g5 {[%clk 0:00:28.7]} 47. Kd3 {[%clk 0:00:19.5]}
47... g4 {[%clk 0:00:28.5]} 48. hxg4 {[%clk 0:00:17.8]} 48... hxg4 {[%clk
0:00:29.4]} 49. Ke3 {[%clk 0:00:18.1]} 49... Bc5+ {[%clk 0:00:29.6]} 50. Kd3
{[%clk 0:00:18.1]} 50... Bf2 {[%clk 0:00:29.8]} 51. Kc2 {[%clk 0:00:18.3]} 51...
Kxe4 {[%clk 0:00:29.2]} 0-1

[Event "*** Titled Tuesday Blitz"]
[Site "Chess.com"]
[Date "2020.12.01"]
[Round "4"]
[White "Matibar"]
[Black "Shield12"]
[Result "1/2-1/2"]
[WhiteElo "2745"]
[BlackElo "2929"]
[TimeControl "180+1"]
[EndTime "10:38:40 PST"]
[Termination "Game drawn by agreement"]

1. a3 {[%clk 0:03:00.6]} 1... e5 {[%clk 0:02:56.9]} 2. e4 {[%clk 0:03:00.3]}
2... Nf6 {[%clk 0:02:56.5]} 3. Nc3 {[%clk 0:03:00.6]} 3... d5 {[%clk 0:02:55]}
4. exd5 {[%clk 0:03:00.5]} 4... Nxd5 {[%clk 0:02:55.9]} 5. Bc4 {[%clk
0:03:00.8]} 5... Nxc3 {[%clk 0:02:45.4]} 6. Qf3 {[%clk 0:03:00.5]} 6... Qf6
{[%clk 0:02:45]} 7. bxc3 {[%clk 0:02:58]} 7... Nc6 {[%clk 0:02:40.3]} 8. Qxf6
{[%clk 0:02:56.3]} 8... gxf6 {[%clk 0:02:41.2]} 9. Ne2 {[%clk 0:02:54.6]} 9...
Rg8 {[%clk 0:02:40.9]} 10. O-O {[%clk 0:02:48.4]} 10... Be6 {[%clk 0:02:39.3]}
11. Bxe6 {[%clk 0:02:44.9]} 11... fxe6 {[%clk 0:02:40.2]} 12. d3 {[%clk
0:02:44.8]} 12... Kf7 {[%clk 0:02:30]} 13. Be3 {[%clk 0:02:25.1]} 13... b6
{[%clk 0:02:29.3]} 14. f3 {[%clk 0:02:15.3]} 14... f5 {[%clk 0:02:28.5]} 15. Kf2
{[%clk 0:02:15.5]} 15... h5 {[%clk 0:02:28.2]} 16. g3 {[%clk 0:02:14.4]} 16...
h4 {[%clk 0:02:27.1]} 17. a4 {[%clk 0:02:12.7]} 17... Be7 {[%clk 0:02:26.5]} 18.
Rg1 {[%clk 0:02:10.3]} 18... Rg6 {[%clk 0:02:25.6]} 19. g4 {[%clk 0:01:55.8]}
19... h3 {[%clk 0:02:22.1]} 20. gxf5 {[%clk 0:01:53.1]} 20... Bh4+ {[%clk
0:02:21.7]} 21. Kf1 {[%clk 0:01:51.8]} 21... Rf6 {[%clk 0:02:15.1]} 22. Rg4
{[%clk 0:01:44.7]} 22... Rh8 {[%clk 0:02:08.9]} 23. Rxh4 {[%clk 0:01:39.9]}
23... Rxh4 {[%clk 0:02:08.3]} 24. Bg5 {[%clk 0:01:40.5]} 24... Rh8 {[%clk
0:01:48.3]} 25. Bxf6 {[%clk 0:01:38.9]} 25... Kxf6 {[%clk 0:01:49.2]} 26. fxe6
{[%clk 0:01:39.6]} 26... Kxe6 {[%clk 0:01:50.1]} 27. Kf2 {[%clk 0:01:37.6]}
27... Ne7 {[%clk 0:01:45.3]} 28. Rg1 {[%clk 0:01:34.9]} 28... Nd5 {[%clk
0:01:42.5]} 29. Rg6+ {[%clk 0:01:28.8]} 29... Kf7 {[%clk 0:01:42.1]} 30. Rc6
{[%clk 0:01:27.4]} 30... Rg8 {[%clk 0:01:41.4]} 31. Ng3 {[%clk 0:01:26.1]} 31...
Rg6 {[%clk 0:01:39.8]} 32. Rxg6 {[%clk 0:00:56.8]} 32... Kxg6 {[%clk 0:01:40.7]}
33. Ne4 {[%clk 0:00:52]} 33... Kf5 {[%clk 0:01:33.2]} 34. c4 {[%clk 0:00:41.5]}
34... Nb4 {[%clk 0:01:32.6]} 35. Ke2 {[%clk 0:00:30]} 35... Nxc2 {[%clk
0:01:32.3]} 36. Nf2 {[%clk 0:00:30.3]} 36... Nd4+ {[%clk 0:01:19.9]} 37. Ke3
{[%clk 0:00:29.9]} 37... Ne6 {[%clk 0:01:17.1]} 38. Nxh3 {[%clk 0:00:29.9]}
38... Nc5 {[%clk 0:01:17.7]} 39. f4 {[%clk 0:00:19.6]} 39... Nxa4 {[%clk
0:01:09]} 40. fxe5 {[%clk 0:00:19.7]} 40... Kxe5 {[%clk 0:01:09.9]} 41. Nf4
{[%clk 0:00:13.5]} 41... c6 {[%clk 0:01:09.5]} 42. h4 {[%clk 0:00:13.5]} 42...
b5 {[%clk 0:01:06.9]} 43. cxb5 {[%clk 0:00:12.6]} 43... cxb5 {[%clk 0:01:07.8]}
44. h5 {[%clk 0:00:13.1]} 44... Nb6 {[%clk 0:01:04.4]} 45. h6 {[%clk 0:00:09.6]}
45... Kf6 {[%clk 0:01:04.7]} 46. Kd4 {[%clk 0:00:10.2]} 46... b4 {[%clk
0:01:02.8]} 47. Ne2 {[%clk 0:00:06]} 47... Kg6 {[%clk 0:01:02]} 48. Kc5 {[%clk
0:00:06.4]} 48... b3 {[%clk 0:00:58.6]} 49. Nc3 {[%clk 0:00:06.7]} 49... b2
{[%clk 0:00:53]} 50. Nb1 {[%clk 0:00:06.9]} 50... Kxh6 {[%clk 0:00:50.4]} 51.
Kb4 {[%clk 0:00:07.2]} 1/2-1/2